bitfinex-derivatives/quotes_BNBF0:USTF0_20250507
["timestamp","ask_amount","ask_price","bid_price","bid_amount"]
[1746576420980,0.30449204,604.29,602.43,0.33198877]
[1746576421183,0.33097239,604.28,602.43,0.33198877]
[1746576421582,0.30449204,604.27,602.43,0.33198877]
[1746576423984,0.30449204,604.27,602.43,1.08998877]
[1746576424691,0.30449204,604.27,602.43,1.72098877]
[1746576429091,0.33097239,604.28,602.43,1.72098877]
[1746576429294,0.30445983,604.27,602.43,1.72098877]
[1746576434198,0.33097239,604.28,602.43,1.72098877]
[1746576434398,0.30445539,604.26,602.43,1.72098877]
[1746576434598,0.33097239,604.28,602.43,1.72098877]
[1746576434791,0.3044556,604.25,602.43,1.72098877]
[1746576434999,0.3044556,604.27,602.43,1.72098877]
[1746576435196,0.3044556,604.26,602.43,1.72098877]
[1746576435397,0.3044556,604.27,602.43,1.72098877]
[1746576439903,0.33097239,604.28,602.43,1.72098877]
[1746576440102,0.30445247,604.27,602.43,1.72098877]
[1746576441907,0.33097239,604.28,602.43,1.72098877]
[1746576447111,0.30438236,604.27,602.43,1.72098877]
[1746576447310,0.33098335,604.26,602.43,1.72098877]
[1746576447505,0.30438236,604.25,602.43,1.72098877]
[1746576449014,0.33098335,604.26,602.43,1.72098877]
[1746576450017,0.30438328,604.25,602.43,1.72098877]
[1746576451415,0.33098335,604.26,602.43,1.72098877]
[1746576460421,0.30437688,604.25,602.43,1.72098877]
[1746576460616,0.3309943,604.24,602.43,1.72098877]
[1746576461122,0.30437688,604.23,602.43,1.72098877]
[1746576461315,0.33100526,604.22,602.43,1.72098877]
[1746576461721,0.30437688,604.21,602.43,1.72098877]
[1746576462318,0.33101621,604.2,602.43,1.72098877]
[1746576462722,0.30437688,604.19,602.43,1.72098877]
[1746576463627,0.33101621,604.2,602.43,1.72098877]
[1746576463921,0.30440644,604.19,602.43,1.72098877]
[1746576466828,0.33101621,604.2,602.43,1.72098877]
[1746576471534,0.30445131,604.19,602.43,1.72098877]
[1746576472527,0.33101621,604.2,602.43,1.72098877]
[1746576472834,0.30445053,604.19,602.43,1.72098877]
[1746576474535,0.33102717,604.18,602.43,1.72098877]
[1746576474936,0.30445053,604.17,602.43,1.72098877]
[1746576475837,0.33103813,604.16,602.43,1.72098877]
[1746576476537,0.30445053,604.15,602.43,1.72098877]
[1746576476739,0.33104909,604.14,602.43,1.72098877]
[1746576477137,0.30445053,604.13,602.43,1.72098877]
[1746576477437,0.33106005,604.12,602.43,1.72098877]
[1746576478140,0.30445053,604.11,602.43,1.72098877]
[1746576480043,0.33107101,604.1,602.43,1.72098877]
[1746576480545,0.30445053,604.09,602.43,1.72098877]
[1746576481139,0.33108197,604.08,602.43,1.72098877]
[1746576481545,0.30445053,604.07,602.43,1.72098877]
[1746576482142,0.33109293,604.06,602.43,1.72098877]
[1746576482544,0.30445053,604.05,602.43,1.72098877]
[1746576482739,0.3311039,604.04,602.43,1.72098877]
[1746576498756,0.33096144,604.3,602.43,1.72098877]
[1746576499059,0.30446756,604.29,602.43,1.72098877]
[1746576504961,0.33097239,604.28,602.43,1.72098877]
[1746576505467,0.30446756,604.27,602.43,1.72098877]
[1746576505666,0.33098335,604.26,602.43,1.72098877]
[1746576505868,0.30446756,604.25,602.43,1.72098877]
[1746576506162,0.3309943,604.24,602.43,1.72098877]
[1746576506566,0.30446756,604.23,602.43,1.72098877]
[1746576507667,0.33100526,604.22,602.43,1.72098877]
[1746576507968,0.30446756,604.21,602.43,1.72098877]
[1746576511270,0.33100526,604.22,602.43,1.72098877]
[1746576511664,0.30438822,604.21,602.43,1.72098877]
[1746576512670,0.33100526,604.22,602.43,1.72098877]
[1746576512872,0.3043879,604.21,602.43,1.72098877]
[1746576514274,0.33100526,604.22,602.43,1.72098877]
[1746576514974,0.30438607,604.21,602.43,1.72098877]
[1746576515475,0.63539681,604.21,602.43,1.72098877]
[1746576515773,0.30438607,604.2,602.43,1.72098877]
[1746576516271,0.33102169,604.19,602.43,1.72098877]
[1746576532087,0.30439216,604.18,602.43,1.72098877]
[1746576532587,0.33102169,604.19,602.43,1.72098877]
[1746576532783,0.30439113,604.17,602.43,1.72098877]
[1746576533086,0.33102169,604.19,602.43,1.72098877]
[1746576533087,0.30439113,604.18,602.43,1.72098877]
[1746576534388,0.33102169,604.19,602.43,1.72098877]
[1746576534689,0.3043955,604.18,602.43,1.72098877]
[1746576538489,0.33102169,604.19,602.43,1.72098877]
[1746576538788,0.30441094,604.18,602.43,1.72098877]
[1746576552198,0.33102169,604.19,602.43,1.72098877]
[1746576555101,0.30445316,604.18,602.43,1.72098877]
[1746576555601,0.33102169,604.19,602.43,1.72098877]
[1746576564106,0.30451888,604.18,602.43,1.72098877]
[1746576568108,0.33102169,604.19,602.43,1.72098877]
[1746576579615,0.30435183,604.18,602.43,1.72098877]
[1746576582421,0.33102169,604.19,602.43,1.72098877]
[1746576602236,0.33102169,604.19,602.47,1.05107925]
[1746576603836,0.33102169,604.19,602.45,1.05107925]
[1746576605837,0.33102169,604.19,602.46,0.692]
[1746576606137,0.33102169,604.19,602.48,0.33196122]
[1746576608635,0.33095048,604.32,602.48,0.33196122]
[1746576612141,0.33095048,604.32,602.48,0.33196122]
[1746576631160,0.33095048,604.32,602.6,1.05107925]
[1746576631361,0.33095048,604.32,602.62,0.3318841]
[1746576632956,0.33095048,604.32,602.63,0.532]
[1746576633157,0.33095048,604.32,602.65,0.33186758]
[1746576636665,0.33095048,604.32,602.65,1.05786758]
[1746576638566,0.32245924,604.32,602.65,1.05786758]
[1746576645773,0.32245924,604.32,602.72,1.05107925]
[1746576645966,0.32245924,604.32,602.74,0.33181803]
[1746576648173,0.32245924,604.32,602.75,1.05107925]
[1746576650176,0.32245924,604.32,602.85,1.05107925]
[1746576653972,0.32245924,604.32,602.87,1.38282572]
[1746576654177,0.32245924,604.32,602.89,0.33173547]
[1746576656479,0.32245924,604.32,602.9,0.597]
[1746576656674,0.32245924,604.32,602.92,0.33171896]
[1746576660383,0.32245924,604.32,602.99,1.05107925]
[1746576660575,0.32245924,604.32,603.01,0.33166945]
[1746576676393,0.32245924,604.32,603.02,0.68]
[1746576677990,0.32245924,604.32,603.04,0.33165295]
[1746576695709,0.32245924,604.32,603.04,0.99265295]
[1746576697810,0.32245924,604.32,603.04,1.51165295]
[1746576786763,0.32245924,604.32,603.04,2.55695261]
[1746576788864,0.32245924,604.32,603.13,1.04529966]
[1746576789065,0.32245924,604.32,603.15,0.33159247]
[1746576791665,0.32245924,604.32,603.15,0.84759247]
[1746576792968,0.32245924,604.32,603.15,1.27859247]
[1746576913053,0.32245924,604.32,603.15,0.76259247]
[1746576913253,0.32245924,604.32,603.15,0.33159247]
[1746576924762,0.32245924,604.32,603.19,1.04529966]
[1746576925064,0.32245924,604.32,603.21,0.33155949]
[1746576930468,0.32245924,604.32,603.29,1.04529966]
[1746576930662,0.32245924,604.32,603.31,0.33150453]
[1746576980400,0.32245924,604.32,603.31,0.85350453]
[1746576999219,0.32245924,604.32,603.31,1.45450453]
[1746577150404,0.32245924,604.32,603.31,2.49980419]
[1746577152704,0.32245924,604.32,603.33,1.04529966]
[1746577155313,0.32245924,604.32,603.31,0.33150453]
[1746577156411,0.32245924,604.32,603.31,0.86150453]
[1746577156708,0.32245924,604.32,603.31,1.34150453]
[1746577164017,0.32245924,604.32,603.36,1.04529966]
[1746577164412,0.32245924,604.32,603.38,0.33146607]
[1746577166217,0.32245924,604.32,603.5,1.04529966]
[1746577166416,0.32245924,604.32,603.52,0.33138918]
[1746577183033,0.32245924,604.32,603.48,0.28793765]
[1746577185134,0.32245924,604.32,603.31,0.48]
[1746577185534,0.32245924,604.32,603.32,0.28795194]
[1746577188137,0.32245924,604.32,603.33,0.491]
[1746577189438,0.69112897,606.26,603.33,0.491]
[1746577189633,0.69112897,606.44,603.33,0.491]
[1746577189839,0.30381821,605.41,603.33,0.491]
[1746577190439,0.69112897,606.44,603.33,0.491]
[1746577191439,1.26161258,606.25,603.33,0.491]
[1746577192436,0.30380955,605.41,603.33,0.491]
[1746577194345,0.30380955,605.41,603.54,1.04529966]
[1746577194539,0.28780667,605.42,603.54,1.04529966]
[1746577194738,0.30380955,605.41,603.54,1.04529966]
[1746577196244,0.30380955,605.41,603.63,1.04529966]
[1746577197446,0.30380955,605.82,603.63,1.04529966]
[1746577197846,0.28772101,605.42,603.63,1.04529966]
[1746577198044,0.30380955,605.41,603.63,1.04529966]
[1746577198349,0.30380955,605.41,603.5,1.04529966]
[1746577199549,0.28774956,605.58,603.5,1.04529966]
[1746577199850,0.30380955,605.57,603.5,1.04529966]
[1746577200352,0.30380955,605.98,603.5,1.04529966]
[1746577200652,0.69112897,606.13,603.53,1.04529966]
[1746577200653,0.2877329,605.56,603.53,1.04529966]
[1746577201251,0.30380955,605.55,603.53,1.04529966]
[1746577201447,0.2877329,605.56,603.53,1.04529966]
[1746577201851,1.26161258,606.11,603.53,1.04529966]
[1746577202551,0.28769247,605.55,603.53,1.04529966]
[1746577203046,0.28769247,605.55,603.5,1.04529966]
[1746577203253,1.26161258,606.09,603.5,1.04529966]
[1746577203548,0.28769841,605.54,603.5,1.04529966]
[1746577203851,1.26161258,606.09,603.5,1.04529966]
[1746577204452,0.30379618,606.08,603.5,1.04529966]
[1746577204647,0.30379618,606.08,603.49,0.28769841]
[1746577205146,0.30379618,606.76,603.49,0.28769841]
[1746577205352,0.28763064,606.07,603.49,0.28769841]
[1746577205554,0.59142682,606.07,603.49,0.28769841]
[1746577205849,0.30379618,606.06,603.49,0.28769841]
[1746577206155,0.30379618,606.06,603.33,0.491]
[1746577206355,0.30379618,606.76,603.5,0.383]
[1746577206754,0.28763064,606.75,603.5,0.383]
[1746577206954,0.59142682,606.75,603.5,0.383]
[1746577207154,0.30379618,606.74,603.5,0.383]
[1746577207450,0.30379618,606.73,603.5,0.383]
[1746577207754,0.30379618,606.72,603.5,0.383]
[1746577208354,0.30379618,606.71,603.5,0.383]
[1746577208755,0.30379618,606.7,603.5,0.383]
[1746577208949,0.30379618,606.69,603.5,0.383]
[1746577209149,1.26161258,606.77,603.5,0.383]
[1746577209353,0.99489989,606.76,603.5,0.383]
[1746577209549,0.99489989,606.75,603.5,0.383]
[1746577209850,0.99489989,606.74,603.5,0.383]
[1746577210657,0.30380104,606.73,603.5,0.383]
[1746577211052,0.30380104,606.72,603.5,0.383]
[1746577211358,0.30380104,606.71,603.5,0.383]
[1746577211557,1.26161258,606.75,603.5,0.383]
[1746577211757,1.26161258,606.53,603.5,0.383]
[1746577212353,0.30374844,606.52,603.5,0.383]
[1746577212553,0.59138146,606.52,603.5,0.383]
[1746577212756,0.30374844,606.51,603.5,0.383]
[1746577213257,0.30374844,606.5,603.5,0.383]
[1746577213559,0.30374844,606.49,603.5,0.383]
[1746577213753,0.30374844,606.48,603.5,0.383]
[1746577213957,0.30374844,606.48,603.6,0.33134526]
[1746577214258,1.26161258,606.45,603.6,0.33134526]
[1746577214458,0.32986426,606.31,603.6,0.33134526]
[1746577214859,0.30374844,606.3,603.6,0.33134526]
[1746577215255,0.30374844,606.29,603.6,0.33134526]
[1746577215554,0.28764372,606.29,603.6,0.33134526]
[1746577215860,0.3037634,606.28,603.6,0.33134526]
[1746577216062,0.3037634,606.28,603.61,0.379]
[1746577216256,0.28764372,606.29,603.61,0.379]
[1746577216257,0.3037634,606.27,603.61,0.379]
[1746577216458,0.3037634,606.26,603.61,0.379]
[1746577216760,0.3037634,606.25,603.61,0.379]
[1746577216955,0.3037634,606.24,603.61,0.379]
[1746577217154,0.3037634,606.23,603.61,0.379]
[1746577217457,0.3037634,606.22,603.61,0.379]
[1746577217761,0.3037634,606.21,603.61,0.379]
[1746577217962,0.3037634,606.2,603.61,0.379]
[1746577218458,0.3037634,606.19,603.61,0.379]
[1746577218663,0.59139523,606.19,603.61,0.379]
[1746577218862,0.3037634,606.18,603.61,0.379]
[1746577219061,0.3037634,606.17,603.61,0.379]
[1746577219364,0.3037634,606.16,603.61,0.379]
[1746577219663,0.3037634,606.15,603.61,0.379]
[1746577219861,0.3037634,606.14,603.61,0.379]
[1746577220062,0.3037634,606.13,603.61,0.379]
[1746577220563,0.3037634,606.12,603.61,0.379]
[1746577220763,0.3037634,606.11,603.61,0.379]
[1746577221163,0.3037634,606.1,603.61,0.379]
[1746577221663,0.5914095,606.09,603.61,0.379]
[1746577222059,0.3037634,606.08,603.61,0.379]
[1746577222264,0.3037634,606.07,603.61,0.379]
[1746577222564,0.3037634,606.06,603.61,0.379]
[1746577223064,0.3037634,606.05,603.61,0.379]
[1746577223360,0.3037634,606.04,603.61,0.379]
[1746577223663,0.3037634,606.03,603.61,0.379]
[1746577224059,0.3037634,606.02,603.61,0.379]
[1746577224465,0.3037634,606.08,603.61,0.379]
[1746577224665,0.28769128,606.01,603.61,0.379]
[1746577224864,1.26161258,606.27,603.61,0.379]
[1746577225165,0.30380774,606.26,603.61,0.379]
[1746577225466,0.30380774,606.25,603.61,0.379]
[1746577225766,0.30380774,606.24,603.61,0.379]
[1746577226169,0.30380774,606.23,603.61,0.379]
[1746577226467,0.30380774,606.22,603.61,0.379]
[1746577226963,0.30380774,606.21,603.63,0.33132879]
[1746577227168,0.30380774,606.2,603.63,0.33132879]
[1746577227467,0.30380774,606.19,603.63,0.33132879]
[1746577227661,0.59148118,606.19,603.63,0.33132879]
[1746577227860,0.30380774,606.18,603.63,0.33132879]
[1746577228162,0.30380774,606.17,603.63,0.33132879]
[1746577228361,0.30380774,606.16,603.63,0.33132879]
[1746577228666,0.28767344,606.19,603.63,0.33132879]
[1746577228868,1.26161258,606.18,603.63,0.33132879]
[1746577229066,1.56542148,606.18,603.63,0.33132879]
[1746577229261,0.3038089,606.17,603.63,0.33132879]
[1746577229462,0.3038089,606.16,603.63,0.33132879]
[1746577229767,0.3038089,606.15,603.63,0.33132879]
[1746577230467,0.3038089,606.14,603.63,0.33132879]
[1746577230868,0.59146807,606.14,603.63,0.33132879]
[1746577231070,0.33002211,606.02,603.63,0.33132879]
[1746577231268,0.3038089,606.01,603.63,0.33132879]
[1746577232969,0.33008747,605.9,603.63,0.33132879]
[1746577233369,0.3038089,605.89,603.63,0.33132879]
[1746577233770,0.59148829,605.89,603.63,0.33132879]
[1746577234370,0.3038089,605.88,603.63,0.33132879]
[1746577234870,0.33015831,605.77,603.63,0.33132879]
[1746577235071,0.3038089,605.76,603.63,0.33132879]
[1746577235267,0.33021827,605.66,603.63,0.33132879]
[1746577235667,0.3038089,605.65,603.63,0.33132879]
[1746577235871,0.33023463,605.63,603.63,0.33132879]
[1746577236572,0.59151683,605.62,603.63,0.33132879]
[1746577236972,0.3038089,605.61,603.63,0.33132879]
[1746577237572,0.33025644,605.59,603.63,0.33132879]
[1746577237876,0.3038089,605.58,603.63,0.33132879]
[1746577238273,0.3302728,605.56,603.63,0.33132879]
[1746577238773,0.3038089,605.55,603.63,0.33132879]
[1746577239267,0.33028916,605.53,603.63,0.33132879]
[1746577239772,0.3038089,605.52,603.63,0.33132879]
[1746577242371,0.3038089,605.52,603.64,0.526]
[1746577242570,0.59154299,605.52,603.64,0.526]
[1746577242872,0.3038089,605.51,603.64,0.526]
[1746577243176,0.3038089,605.51,603.66,0.33131232]
[1746577243379,0.33031098,605.49,603.66,0.33131232]
[1746577244077,0.30377636,605.48,603.66,0.33131232]
[1746577244277,0.33032735,605.46,603.66,0.33131232]
[1746577244477,0.30377636,605.45,603.66,0.33131232]
[1746577245773,0.33033826,605.44,603.66,0.33131232]
[1746577246077,0.30377636,605.43,603.66,0.33131232]
[1746577246271,0.33034917,605.42,603.66,0.33131232]
[1746577257089,0.33034917,605.42,603.66,0.90731232]
[1746577259091,0.33034917,605.42,603.66,1.47831232]
[1746577261487,0.33034917,605.42,603.66,2.52361198]
[1746577263891,0.33034917,605.42,603.66,1.47831232]
[1746577275397,1.26161258,606.89,603.66,1.47831232]
[1746577275694,0.28745839,605.98,603.66,1.47831232]
[1746577276099,0.30357054,605.97,603.66,1.47831232]
[1746577277001,0.28745839,605.98,603.66,1.47831232]
[1746577277402,0.28745839,605.98,603.67,1.04529966]
[1746577278201,1.59124849,606.73,603.67,1.04529966]
[1746577278402,0.30359288,606.72,603.67,1.04529966]
[1746577278702,0.59108333,606.72,603.67,1.04529966]
[1746577279002,0.30359288,606.71,603.67,1.04529966]
[1746577280002,0.30359288,606.71,603.66,1.76580277]
[1746577281202,0.30359288,606.71,603.66,1.47831232]
[1746577281501,0.30359288,606.72,603.66,1.47831232]
[1746577281703,0.28747382,606.7,603.66,1.76578614]
[1746577282198,0.30359288,606.69,603.66,1.76578614]
[1746577282398,0.30359288,606.68,603.66,1.76578614]
[1746577282805,0.30359288,606.67,603.66,1.76578614]
[1746577283303,0.30359288,606.69,603.66,1.76578614]
[1746577284199,0.30359288,606.69,603.66,1.47831232]
[1746577284402,0.30359288,606.72,603.66,1.47831232]
[1746577284804,0.30359288,606.72,603.66,1.76579921]
[1746577285105,0.28748689,606.71,603.66,1.76579921]
[1746577285406,0.30359288,606.7,603.66,1.76579921]
[1746577289510,0.28748689,606.71,603.66,1.76579921]
[1746577290109,0.30359409,606.7,603.66,1.76579921]
[1746577292711,0.30359409,606.69,603.66,1.76579921]
[1746577293005,0.30359409,606.68,603.66,1.76579921]
[1746577293310,0.30359409,606.68,603.66,1.47831232]
[1746577293708,0.28748214,606.67,603.66,1.76579446]
[1746577294210,0.30359409,606.66,603.66,1.76579446]
[1746577294511,0.30359409,606.65,603.66,1.76579446]
[1746577294810,0.30359409,606.64,603.66,1.76579446]
[1746577295110,0.30359409,606.63,603.66,1.76579446]
[1746577295511,0.30359409,606.62,603.66,1.76579446]
[1746577295907,0.30359409,606.61,603.66,1.76579446]
[1746577296211,0.30359409,606.61,603.66,1.47831232]
[1746577296410,0.30359409,606.6,603.66,1.47831232]
[1746577296611,0.28750351,606.6,603.66,1.76581583]
[1746577296907,0.3035223,606.59,603.66,1.76581583]
[1746577298209,0.3035223,606.59,603.8,0.3312355]
[1746577298609,0.32972286,606.57,603.8,0.3312355]
[1746577299015,0.3035223,606.56,603.8,0.3312355]
[1746577299208,0.32973917,606.54,603.8,0.3312355]
[1746577299715,0.3035223,606.53,603.8,0.3312355]
[1746577299916,0.32975548,606.51,603.8,0.3312355]
[1746577300310,0.3035223,606.5,603.8,0.3312355]
[1746577300516,0.32977179,606.48,603.8,0.3312355]
[1746577300917,0.30328427,606.47,603.8,0.3312355]
[1746577301114,0.32978267,606.46,603.8,0.3312355]
[1746577301313,0.30328427,606.45,603.8,0.3312355]
[1746577301513,0.32979354,606.44,603.8,0.3312355]
[1746577302013,0.30328427,606.43,603.8,0.8722355]
[1746577302218,0.32980442,606.42,603.8,0.8722355]
[1746577304314,0.3032944,606.41,603.8,0.8722355]
[1746577305520,0.32980442,606.42,603.8,0.8722355]
[1746577307820,0.32980442,606.42,603.9,1.04529966]
[1746577308017,0.32980442,606.42,604.02,0.33111486]
[1746577310725,0.28722706,606.94,604.02,0.95911486]
[1746577311126,0.30305565,606.93,604.02,0.95911486]
[1746577311622,0.30305565,607.61,604.02,0.95911486]
[1746577311820,0.30305565,607.6,604.02,0.95911486]
[1746577312123,0.68988477,607.77,604.02,0.95911486]
[1746577312124,0.30305565,607.59,604.02,0.95911486]
[1746577312424,0.30305565,607.58,604.02,0.95911486]
[1746577312625,0.59012752,607.58,604.02,0.95911486]
[1746577312821,0.30305565,607.57,604.02,0.95911486]
[1746577313826,0.32925604,607.43,604.02,0.95911486]
[1746577314030,0.30305565,607.42,604.02,0.95911486]
[1746577316127,0.30305565,607.41,604.02,0.95911486]
[1746577316727,0.30305565,607.4,604.02,0.95911486]
[1746577316927,0.30305565,607.4,604.02,1.55511486]
[1746577317128,0.32925604,607.43,604.02,1.55511486]
[1746577317330,0.30310421,607.42,604.02,1.55511486]
[1746577317630,0.59023174,607.42,604.02,1.55511486]
[1746577317831,0.30310421,607.41,604.02,1.55511486]
[1746577318329,0.30310421,607.4,604.02,1.55511486]
[1746577318927,0.30310421,607.39,604.02,1.55511486]
[1746577319228,0.30310421,607.38,604.02,1.55511486]
[1746577319431,0.32934821,607.26,604.02,1.55511486]
[1746577319825,0.30310421,607.25,604.02,1.55511486]
[1746577320026,0.32936449,607.23,604.02,1.55511486]
[1746577320629,0.30310421,607.22,604.02,1.55511486]
[1746577320926,0.32938076,607.2,604.02,1.55511486]
[1746577321432,0.30307223,607.19,604.02,1.55511486]
[1746577321633,0.32939703,607.17,604.02,1.55511486]
[1746577322134,0.30307223,607.16,604.02,1.55511486]
[1746577322332,0.32941331,607.14,604.02,1.55511486]
[1746577322835,0.30307223,607.13,604.02,1.55511486]
[1746577324437,0.32941331,607.14,604.02,1.55511486]
[1746577324637,0.30297986,607.13,604.02,1.55511486]
[1746577327936,0.28711805,607.12,604.02,1.55511486]
[1746577328142,0.30297986,607.11,604.02,1.55511486]
[1746577329237,0.30297986,607.13,604.02,1.55511486]
[1746577329542,0.61652662,607.14,604.02,1.55511486]
[1746577330038,0.30297865,607.13,604.02,1.55511486]
[1746577330539,0.32941331,607.14,604.02,1.55511486]
[1746577331246,0.3028954,607.13,604.02,1.55511486]
[1746577331746,0.32941331,607.14,604.02,1.55511486]
[1746577333849,0.30294265,607.13,604.02,1.55511486]
[1746577336349,0.32941331,607.14,604.02,1.55511486]
[1746577339551,0.30292188,607.13,604.02,1.55511486]
[1746577340153,0.30292188,607.13,604.09,1.04529966]
[1746577342155,0.30292188,607.13,604.31,1.04529966]
[1746577343756,0.30292188,607.13,604.31,1.95129966]
[1746577344057,0.30292188,607.13,604.57,1.04529966]
[1746577344256,0.32941331,607.14,604.57,1.04529966]
[1746577345861,0.32941331,607.14,604.31,0.906]
[1746577355863,0.32941331,607.14,604.48,1.04529966]
[1746577357770,0.32941331,607.14,604.59,1.04529966]
[1746577357970,0.32934821,607.26,604.59,1.04529966]
[1746577360172,0.30290568,607.25,604.59,1.04529966]
[1746577360672,0.32934821,607.26,604.59,1.04529966]
[1746577361067,0.30290329,607.25,604.59,1.04529966]
[1746577361372,0.32934821,607.26,604.59,1.04529966]
[1746577361568,0.32934821,607.26,604.6,0.634]
[1746577361768,0.30290439,607.25,604.6,0.634]
[1746577362374,0.32934821,607.26,604.6,0.634]
[1746577362568,0.30290457,607.25,604.6,0.634]
[1746577362873,0.28700202,607.24,604.6,0.634]
[1746577363073,0.30290457,607.23,604.6,0.634]
[1746577363878,0.28700202,607.24,604.6,0.634]
[1746577364373,0.32934821,607.26,604.6,0.634]
[1746577369684,0.32934821,607.26,604.67,1.04529966]
[1746577371682,0.32934821,607.26,604.6,0.634]
[1746577372584,0.28688491,607.59,604.6,0.634]
[1746577373585,0.32917475,607.58,604.6,0.634]
[1746577374085,0.32917475,607.58,604.77,1.04529966]
[1746577374886,0.32917475,607.58,604.77,1.66529966]
[1746577374887,0.28670292,607.57,604.77,1.66529966]
[1746577375782,0.32917475,607.58,604.77,1.66529966]
[1746577375984,0.32917475,607.58,604.95,1.04529966]
[1746577377989,0.32917475,607.58,604.9,1.04529966]
[1746577378487,0.30274976,607.57,604.9,1.04529966]
[1746577379485,0.30274976,607.57,604.9,1.71729966]
[1746577380285,0.30274976,607.57,605.17,1.04529966]
[1746577380688,0.28684234,607.56,605.17,1.04529966]
[1746577381089,0.30274976,607.55,605.17,1.04529966]
[1746577381289,0.28684234,607.56,605.17,1.04529966]
[1746577381591,0.30277168,607.55,605.17,1.04529966]
[1746577382692,0.28684234,607.56,605.17,1.04529966]
[1746577382993,0.28684234,607.56,604.9,0.672]
[1746577383292,0.30277251,607.55,604.9,0.672]
[1746577383492,0.30277251,607.57,604.9,0.672]
[1746577383791,0.28686244,607.54,604.9,0.672]
[1746577384592,0.30277109,607.53,604.9,0.672]
[1746577385592,0.28686244,607.54,604.9,0.672]
[1746577385791,0.30280563,607.53,604.9,0.672]
[1746577386187,0.30280563,607.53,604.91,1.04529966]
[1746577388595,0.30280563,607.53,605.08,1.04529966]
[1746577389494,0.30280563,607.57,605.08,1.04529966]
[1746577389696,0.58967753,607.52,605.08,1.04529966]
[1746577390097,0.2868719,607.52,605.08,1.04529966]
[1746577390496,0.2868719,607.52,605.09,1.04529966]
[1746577391196,0.30282349,607.51,605.09,1.04529966]
[1746577392600,0.30282349,607.51,605.19,1.04529966]
[1746577392797,0.2868991,607.5,605.19,1.04529966]
[1746577393097,0.30282349,607.49,605.19,1.04529966]
[1746577394494,0.30282349,607.49,605.01,0.2868991]
[1746577395197,0.30282349,607.49,604.9,0.672]
[1746577395397,0.30282349,607.57,604.9,0.672]
[1746577395599,0.29403066,607.57,604.9,0.672]
[1746577395798,0.2869334,607.48,605.03,0.33056212]
[1746577396097,0.32917475,607.58,605.03,0.33056212]
[1746577396998,0.30288467,607.57,605.03,0.33056212]
[1746577397497,0.32919101,607.55,605.03,0.33056212]
[1746577397899,0.30288467,607.54,605.03,0.33056212]
[1746577398603,0.28693931,607.53,605.03,0.33056212]
[1746577398900,0.30288467,607.52,605.03,0.33056212]
[1746577400898,0.30288467,607.52,605.03,0.78056212]
[1746577401501,0.28692867,607.51,605.03,0.78056212]
[1746577401902,0.30288467,607.5,605.03,0.78056212]
[1746577403802,0.30288467,607.49,605.03,0.78056212]
[1746577404104,0.30288467,607.48,605.03,0.78056212]
[1746577404397,0.30288467,607.47,605.03,0.78056212]
[1746577404596,0.30288467,607.46,605.03,0.78056212]
[1746577405197,0.30288467,607.45,605.03,0.78056212]
[1746577405501,0.30288467,607.5,605.03,0.78056212]
[1746577407603,0.28700202,607.49,605.03,0.78056212]
[1746577407797,0.58988669,607.49,605.03,0.78056212]
[1746577407999,0.30288467,607.48,605.03,0.78056212]
[1746577408196,0.30288467,607.47,605.03,0.78056212]
[1746577408597,0.30288467,607.46,605.03,0.78056212]
[1746577408903,0.30288467,607.45,605.03,0.78056212]
[1746577409306,0.32931025,607.33,605.03,0.78056212]
[1746577410002,0.30288467,607.32,605.03,0.78056212]
[1746577410407,0.30288467,607.31,605.03,0.78056212]
[1746577410704,0.30288467,607.3,605.03,0.78056212]
[1746577411109,0.30288467,607.32,605.03,0.78056212]
[1746577413813,0.28706358,607.31,605.03,0.78056212]
[1746577414207,0.30288467,607.3,605.03,0.78056212]
[1746577416509,0.30288467,607.32,605.03,0.78056212]
[1746577416713,0.28705884,607.29,605.03,0.78056212]
[1746577417213,0.30288467,607.28,605.03,0.78056212]
[1746577418313,0.30288467,607.27,605.03,0.78056212]
[1746577418808,0.30288467,607.26,605.03,0.78056212]
[1746577419313,0.30288467,607.25,605.03,0.78056212]
[1746577419511,0.30288467,607.24,605.03,0.78056212]
[1746577419709,0.58994351,607.24,605.03,0.78056212]
[1746577419912,0.30288467,607.23,605.03,0.78056212]
[1746577420414,0.30288467,607.22,605.03,0.78056212]
[1746577420915,0.30288467,607.21,605.03,0.78056212]
[1746577421416,0.30288467,607.2,605.03,0.78056212]
[1746577421612,0.30288467,607.19,605.03,0.78056212]
[1746577421916,0.30288467,607.23,605.03,0.78056212]
[1746577422316,0.30288467,607.22,605.03,0.78056212]
[1746577422616,0.30288467,607.21,605.03,0.78056212]
[1746577426011,0.30288467,607.2,605.03,0.78056212]
[1746577426316,0.30288467,607.21,605.03,0.78056212]
[1746577427117,0.30288467,607.2,605.03,0.78056212]
[1746577427416,0.30288467,607.19,605.03,0.78056212]
[1746577427621,0.30288467,607.18,605.03,0.78056212]
[1746577427916,0.30288467,607.17,605.03,0.78056212]